bitfinex/quotes_ETHUSD_20260313
["timestamp","ask_amount","ask_price","bid_price","bid_amount"]
[1773421734536,0.001,2137.2,2136.6,4.81645017]
[1773421734737,0.001,2137.2,2136.7,1.594]
[1773421735264,3.67729961,2137.2,2136.3,4.81661449]
[1773421735563,0.001,2137.0,2136.4,1.594]
[1773421736528,0.001,2137.0,2136.0,5.24136687]
[1773421736529,3.67629961,2136.8,2136.0,5.24136687]
[1773421736756,3.67629961,2136.8,2136.1,0.04681428]
[1773421737259,3.67629961,2136.8,2136.1,3.69318115]
[1773421739266,1.17002854,2136.7,2136.1,4.86348656]
[1773421739680,3.67629961,2136.6,2136.0,1.595]
[1773421739844,3.67629961,2136.6,2136.0,2.76541132]
[1773421740160,1.17002854,2136.7,2136.1,3.64636687]
[1773421740862,0.001,2137.0,2136.1,3.64636687]
[1773421741164,0.001,2137.0,2136.4,3.64636687]
[1773421742535,0.001,2137.2,2136.5,3.64636687]
[1773421742739,0.001,2137.2,2136.7,3.64636687]
[1773421743639,0.001,2137.2,2136.8,4.81634066]
[1773421746638,0.001,2137.2,2136.9,3.64636687]
[1773421747783,0.001,2137.6,2137.0,3.64636687]
[1773421748092,0.001,2137.6,2137.2,3.64636687]
[1773421748550,0.001,2137.6,2137.4,3.64636687]
[1773421749285,4.845234,2138.7,2137.5,3.64636687]
[1773421749441,0.001,2138.6,2137.5,3.64636687]
[1773421749765,0.001,2138.6,2137.7,3.64636687]
[1773421750560,1.16904372,2138.5,2137.8,6.41479338]
[1773421750740,1.16904372,2138.5,2137.9,3.64636687]
[1773421751063,4.84631717,2138.6,2137.9,3.64636687]
[1773421751262,3.67629961,2138.5,2137.8,1.6]
[1773421751653,0.001,2138.4,2137.8,1.6]
[1773421752571,1.17009839,2138.4,2137.8,2.76940437]
[1773421752778,1.17009839,2138.4,2137.8,1.6]
[1773421753085,3.67629961,2138.3,2137.6,1.601]
[1773421753642,3.67629961,2138.1,2137.2,1.16972894]
[1773421754085,3.67729961,2138.0,2137.1,6.41816561]
[1773421754285,3.67629961,2138.0,2137.1,4.81616561]
[1773421754481,3.67629961,2138.0,2137.1,6.41816693]
[1773421754781,3.67629961,2137.8,2137.1,6.41817326]
[1773421755456,3.67729961,2137.7,2137.1,1.602]
[1773421755861,0.001,2137.6,2137.1,1.602]
[1773421756448,0.001,2137.6,2136.6,5.25046687]
[1773421756449,3.67729961,2137.6,2136.6,5.25046687]
[1773421756652,1.16970008,2137.3,2136.6,1.6041]
[1773421756861,3.67729961,2137.2,2136.6,1.6041]
[1773421757548,3.67629961,2137.0,2136.1,1.6051]
[1773421758277,3.67629961,2136.8,2136.1,1.6051]
[1773421758773,3.67629961,2136.8,2136.1,0.0011]
[1773421758774,3.67629961,2136.6,2136.1,0.0011]
[1773421760979,4.77970573,2136.5,2136.1,0.0011]
[1773421761155,3.60956766,2136.4,2136.1,0.0011]
[1773421762059,1.1701075,2136.6,2136.1,0.0011]
[1773421762270,1.17002921,2136.7,2136.1,0.0011]
[1773421762473,4.77959687,2136.7,2136.1,0.0011]
[1773421762854,4.77959687,2136.7,2136.1,1.17145719]
[1773421766756,4.77959687,2136.7,2136.1,0.0011]
[1773421767759,1.16988895,2137.0,2136.2,3.8214866]
[1773421767972,3.60956766,2136.9,2136.1,0.0011]
[1773421769105,3.60956766,2136.7,2136.1,0.0011]
[1773421770875,1.1700833,2136.6,2136.1,0.0011]
[1773421771076,1.1700833,2136.6,2136.1,3.8225866]
[1773421771303,1.16997379,2136.8,2136.1,3.8225866]
[1773421771626,1.16995189,2136.9,2136.2,3.8214866]
[1773421772174,1.17082168,2137.1,2136.2,3.8214866]
[1773421772375,0.001,2137.1,2136.2,3.8214866]
[1773421773001,0.001,2137.1,2136.4,3.8214866]
[1773421773207,3.61056766,2137.1,2136.4,3.8225866]
[1773421774208,0.001,2137.1,2136.4,3.8225866]
[1773421775013,0.001,2137.1,2136.6,3.8214866]
[1773421775186,4.77924251,2137.4,2136.8,3.8214866]
[1773421775187,1.16967485,2137.4,2136.8,3.8214866]
[1773421775884,4.77924251,2137.4,2136.7,1.604]
[1773421776396,3.60956766,2137.3,2136.7,1.604]
[1773421777207,5.01470013,2137.6,2136.8,3.8214866]
[1773421777525,1.16955383,2137.6,2136.8,3.8214866]
[1773421777824,3.60956766,2137.5,2136.7,2.77402177]
[1773421777981,3.60956766,2137.5,2136.7,1.604]
[1773421778181,3.60956766,2137.5,2136.4,1.1712546]
[1773421778594,3.60956766,2137.5,2136.5,3.8214866]
[1773421779305,3.60956766,2137.3,2136.5,4.99157798]
[1773421779510,1.16964536,2137.4,2136.6,3.8214866]
[1773421780483,2.70711265,2137.8,2136.6,3.8214866]
[1773421780484,3.83977753,2137.8,2136.6,3.8214866]
[1773421780682,3.83977753,2137.8,2136.5,1.17009138]
[1773421780683,1.16950878,2137.7,2136.8,3.8214866]
[1773421781412,3.60956766,2137.6,2136.9,4.99140564]
[1773421782083,3.60956766,2137.6,2136.9,5.4274866]
[1773421783090,3.60956766,2137.6,2136.9,1.606]
[1773421783388,4.7791583,2137.5,2136.9,1.606]
[1773421783695,3.60956766,2137.4,2136.7,1.16997742]
[1773421783895,3.60956766,2137.4,2136.8,1.607]
[1773421784615,3.60956766,2137.4,2136.4,1.17129093]
[1773421784812,3.60956766,2137.4,2136.4,4.87524012]
[1773421785222,3.61056766,2137.4,2136.4,4.87524012]
[1773421785398,1.16970008,2137.3,2136.5,3.70394919]
[1773421785792,4.73798233,2137.3,2136.5,3.70394919]
[1773421786201,0.001,2137.4,2136.7,3.70394919]
[1773421787619,3.56828225,2138.1,2137.2,3.70394919]
[1773421787916,4.73745854,2138.3,2137.4,3.70394919]
[1773421789609,3.56828225,2138.7,2137.6,3.70394919]
[1773421789820,3.56828225,2138.5,2137.6,3.70394919]
[1773421790017,1.1689722,2138.7,2137.6,3.70394919]
[1773421790315,4.73725445,2138.7,2137.6,3.70394919]
[1773421790512,3.56828225,2138.6,2137.6,3.70394919]
[1773421791090,3.56828225,2138.6,2137.7,1.608]
[1773421791500,3.56828225,2138.6,2137.3,3.70721731]
[1773421791501,3.81535824,2138.3,2137.3,3.70721731]
[1773421791697,3.81535824,2138.3,2137.2,1.608]
[1773421791913,3.81535824,2138.1,2137.2,2.77775246]
[1773421792086,3.81535824,2138.1,2137.3,0.046788]
[1773421792504,3.81535824,2138.1,2137.2,1.608]
[1773421792715,3.81535824,2138.1,2136.7,5.31521731]
[1773421792716,3.76535824,2138.1,2136.7,5.31521731]
[1773421792920,3.81535824,2137.9,2136.8,3.70721731]
[1773421793217,3.81535824,2137.9,2136.8,3.75401626]
[1773421793591,3.81535824,2137.7,2136.8,4.87714934]
[1773421794292,3.81535824,2137.7,2136.8,4.92394829]
[1773421794699,3.81535824,2137.7,2136.8,1.21673098]
[1773421794905,3.81535824,2137.7,2136.9,3.70721731]
[1773421795089,3.81535824,2137.7,2137.0,0.04679457]
[1773421795289,3.81535824,2137.7,2136.9,3.70721731]
[1773421795903,1.16953592,2137.6,2137.0,1.21665886]
[1773421796629,3.81535824,2138.0,2137.1,3.70721731]
[1773421796807,3.81535824,2138.0,2137.2,0.04679019]
[1773421797195,4.04931283,2138.0,2137.2,0.04679019]
[1773421797395,0.001,2137.5,2137.2,0.04679019]
[1773421798307,3.81535824,2138.4,2137.3,1.16970008]
[1773421798509,3.81535824,2138.3,2137.4,0.04678581]
[1773421798722,3.81535824,2138.3,2137.4,3.75400312]
[1773421800344,3.81535824,2138.1,2137.3,1.608]
[1773421800622,3.81535824,2138.1,2137.3,1.16967581]
[1773421800795,3.81535824,2138.1,2137.3,1.16969398]
[1773421800998,3.81535824,2138.1,2137.2,1.608]
[1773421801203,1.16920774,2138.2,2137.2,2.77775356]
[1773421801204,3.81535824,2137.9,2137.2,2.77775356]
[1773421801431,3.81535824,2137.9,2137.3,0.046788]
[1773421801594,3.81535824,2137.9,2137.2,2.77775356]
[1773421802627,1.16942651,2137.8,2137.2,2.77775356]
[1773421803451,4.98456598,2138.2,2137.3,3.70721731]
[1773421803744,4.21448681,2138.1,2137.3,3.70721731]
[1773421803914,4.21448681,2138.0,2137.3,3.70721731]
[1773421804102,3.81535824,2138.0,2137.3,3.70721731]
[1773421804820,1.16937181,2137.9,2137.3,4.87686477]
[1773421805507,1.16937181,2137.9,2136.9,0.0011]
[1773421805508,4.21459215,2137.8,2136.9,0.0011]
[1773421805713,3.81535824,2137.6,2136.9,0.0011]
[1773421805908,3.81535824,2137.6,2136.9,1.17101092]
[1773421806330,3.81535824,2137.6,2136.9,0.0011]
[1773421806502,3.81535824,2137.4,2136.9,0.0011]
[1773421807229,1.16970008,2137.3,2136.9,0.0011]
[1773421807427,4.98504226,2137.4,2136.9,0.0011]
[1773421808041,1.16961601,2137.5,2136.9,0.0011]
[1773421809038,4.98497425,2137.5,2136.9,0.0011]
[1773421809342,4.21475369,2137.4,2136.9,0.0011]
[1773421809543,3.81535824,2137.2,2136.6,0.0011]
[1773421810144,3.81535824,2137.2,2137.1,0.0011]
[1773421810317,3.81535824,2137.2,2136.6,0.0011]
[1773421810318,4.21477984,2137.2,2136.6,0.0011]
[1773421810640,0.39931767,2137.1,2136.9,0.0011]
[1773421810840,1.16961601,2137.5,2136.9,0.0011]
[1773421811044,4.21467591,2137.4,2136.9,0.0011]
[1773421811209,3.81535824,2137.4,2136.9,0.0011]
[1773421811541,5.38431241,2137.3,2136.9,0.0011]
[1773421811711,4.98505832,2137.3,2136.9,0.0011]
[1773421814316,3.81535824,2137.2,2136.9,0.0011]
[1773421814527,3.81535824,2137.2,2136.6,0.04790333]
[1773421815744,1.16980955,2137.1,2136.6,0.04790333]
[1773421815916,1.16980955,2137.1,2136.6,1.21798479]
[1773421816419,1.16980955,2137.1,2136.6,4.92520072]
[1773421816620,1.16980955,2137.1,2136.6,3.75512064]
[1773421817837,8.49459646,2137.2,2136.6,0.04790333]
[1773421818920,8.49459646,2137.2,2136.6,0.0011]
[1773421819130,8.49459646,2137.2,2136.6,1.17116208]
[1773421819626,8.49459646,2137.2,2136.6,0.0011]
[1773421820426,3.81535824,2137.1,2136.6,0.0011]
[1773421821249,0.22853478,2137.3,2136.6,3.6742233]
[1773421821548,1.16974462,2137.3,2136.6,3.6742233]
[1773421821745,1.16974462,2137.3,2136.6,4.8442663]
[1773421822048,0.39924712,2137.2,2136.6,4.84430438]
[1773421822242,4.96404216,2137.3,2136.6,4.84430438]
[1773421822946,4.19356919,2137.2,2136.8,0.0011]
[1773421823134,0.001,2136.9,2136.8,0.0011]
[1773421823922,0.001,2136.9,2135.4,0.0011]
[1773421823923,3.79529754,2136.9,2135.4,0.0011]
[1773421824204,3.79429754,2135.9,2134.8,4.79848483]
[1773421824320,3.79429754,2135.9,2134.9,3.67316057]
[1773421824321,9.34320428,2135.1,2134.9,3.67316057]
[1773421824523,3.79429754,2135.9,2135.0,3.62631997]
[1773421824735,2.78988937,2135.8,2135.1,0.04683621]
[1773421825024,6.58418691,2135.8,2135.1,0.04683621]
[1773421825328,3.79429754,2135.8,2135.1,0.04683621]
[1773421825638,3.79429754,2136.1,2135.1,0.04683621]
[1773421825842,3.95615921,2136.0,2135.3,1.17079567]
[1773421826162,8.47574156,2136.1,2135.3,1.21762749]
[1773421826163,2.78571652,2135.9,2135.3,1.21762749]
[1773421826321,3.79429754,2136.1,2135.3,1.21762749]
[1773421826518,3.79429754,2136.1,2135.3,4.84394746]
[1773421827026,4.96453031,2136.4,2135.4,3.62631997]
[1773421827223,3.21037349,2136.3,2135.5,0.04682744]
[1773421827524,2.78348133,2136.3,2135.5,0.04682744]
[1773421827725,2.78348133,2136.3,2135.5,3.67314741]
[1773421827935,2.78348133,2136.3,2135.7,3.62631997]
[1773421828140,3.79429754,2136.4,2135.6,1.1706312]
[1773421828538,0.04680348,2136.6,2135.7,3.62631997]
[1773421828736,0.04680348,2136.6,2134.8,0.0011]
[1773421828737,3.79429754,2135.5,2134.8,0.0011]
[1773421828963,3.79429754,2135.5,2134.5,0.0011]
[1773421829150,6.57726346,2135.4,2134.6,1.17117961]
[1773421829351,3.79429754,2135.1,2134.2,0.0011]
[1773421829558,3.79429754,2135.1,2134.3,2.77831495]
[1773421829751,3.79429754,2135.0,2134.4,1.6]
[1773421829953,3.79429754,2134.8,2134.2,1.17247952]
[1773421830475,3.79429754,2134.8,2134.2,0.0011]
[1773421830858,1.17101503,2134.9,2134.2,0.0011]
[1773421831572,1.17101503,2134.9,2134.3,1.604]
[1773421832374,3.79429754,2135.0,2134.3,2.77532135]
[1773421832572,3.79429754,2135.0,2134.4,1.606]
[1773421832771,3.79429754,2135.3,2134.4,1.606]
[1773421832977,3.79429754,2135.3,2134.4,5.23231997]
[1773421833180,4.36597717,2136.0,2134.5,3.62631997]
[1773421833378,0.23003126,2136.0,2134.5,3.62631997]
[1773421833547,0.04680348,2135.9,2134.5,3.62631997]
[1773421833745,4.99051951,2135.9,2134.7,3.62631997]
[1773421833944,3.19529077,2135.9,2134.7,3.62631997]
[1773421834178,0.04680348,2135.8,2134.7,3.62631997]
[1773421834377,0.04680348,2136.1,2134.7,3.62631997]
[1773421834678,1.17041198,2136.0,2134.9,3.62631997]
[1773421834852,1.17041198,2136.0,2135.0,1.61]
[1773421835053,1.17041198,2136.0,2135.0,5.23631997]
[1773421835250,0.04680348,2135.9,2135.0,1.61]
[1773421835552,0.04680348,2135.9,2135.1,3.62631997]
[1773421836653,1.17052158,2135.8,2135.3,0.0011]
[1773421836876,0.04680348,2135.7,2135.2,1.613]
[1773421839233,1.21740671,2135.7,2135.2,2.78382164]
[1773421839866,1.21740671,2135.7,2135.3,1.615]
[1773421840265,1.21739018,2135.7,2135.3,1.615]
[1773421840660,0.04680348,2135.7,2135.4,3.62631997]
[1773421841183,1.21732705,2135.8,2135.3,2.78575158]
[1773421841872,0.04680348,2135.8,2135.3,6.41207155]
[1773421842056,1.2173587,2135.8,2135.3,6.41210336]
[1773421842779,0.04680348,2135.8,2135.3,6.41210336]
[1773421843081,1.21733351,2135.8,2135.3,6.41210336]
[1773421843273,0.04680348,2135.8,2135.4,3.62631997]
[1773421843868,9.2266975,2136.3,2135.4,3.62631997]
[1773421843869,1.1703024,2136.2,2135.4,3.62631997]
[1773421844469,1.1703024,2136.2,2135.5,1.618]
[1773421845082,1.1703024,2136.2,2135.4,3.62631997]
[1773421845287,1.17041198,2136.0,2135.5,2.7886597]
[1773421845501,1.17041198,2136.0,2135.1,5.17997278]
[1773421845786,1.17041198,2136.0,2135.2,5.62706744]
[1773421846184,1.17041198,2136.0,2135.3,4.00906744]
[1773421846991,2.74902291,2135.9,2135.4,1.618]
[1773421847156,2.74902291,2135.9,2135.0,4.01016744]
[1773421847364,6.69965896,2135.8,2135.0,4.01016744]
[1773421847581,2.78131269,2135.7,2135.0,0.0011]
[1773421847790,2.74782469,2135.6,2135.0,0.0011]
[1773421848465,1.17052158,2135.8,2135.1,1.619]
[1773421848665,2.78292413,2135.7,2135.1,1.619]
[1773421849386,1.1706312,2135.6,2135.1,1.619]
[1773421849593,1.1706312,2135.6,2135.2,1.619]
[1773421850367,2.78637344,2135.5,2135.2,1.619]
[1773421850562,2.78637344,2135.5,2135.3,1.619]
[1773421850999,2.78637344,2135.5,2135.0,0.0011]
[1773421851161,5.56327739,2135.5,2135.0,0.0011]
[1773421851368,5.56327739,2135.5,2134.8,0.0011]
[1773421851369,1.17079567,2135.3,2134.8,0.0011]
[1773421851663,2.78874561,2135.2,2134.8,0.0011]
[1773421852364,2.78874561,2135.1,2134.9,1.619]
[1773421852594,1.17079567,2135.3,2134.9,1.619]
[1773421852764,2.79158965,2135.2,2134.9,1.619]
[1773421853392,2.79158965,2135.1,2134.9,6.80481763]
[1773421853690,1.17079484,2135.4,2135.0,4.01481228]
[1773421853885,2.79468769,2135.3,2135.0,4.01481228]
[1773421854089,1.17079484,2135.4,2135.0,4.01481228]
[1773421854090,2.79468769,2135.2,2135.0,4.01481228]
[1773421854316,1.17079484,2135.4,2134.9,1.619]
[1773421854478,5.5661673,2135.3,2135.0,1.618]
[1773421854680,2.79476684,2135.2,2135.0,1.618]
[1773421854914,1.17062037,2135.7,2135.1,4.01481228]
[1773421855101,2.79416497,2135.6,2135.1,4.01481228]
[1773421855420,2.79416497,2135.5,2135.2,5.18566278]
[1773421855594,1.17153027,2135.8,2135.2,5.18566278]
[1773421855782,2.79406816,2135.7,2135.2,5.18566278]
[1773421855983,2.79406816,2135.6,2135.2,5.18566278]
[1773421856319,1.17153027,2135.8,2135.2,5.18566278]
[1773421856496,2.79424545,2135.7,2135.2,5.18566278]
[1773421856817,2.79424545,2135.6,2135.2,5.18566278]
[1773421857017,1.17153027,2135.8,2135.2,4.01481228]
[1773421857225,2.79424545,2135.7,2135.2,4.01481228]
[1773421857383,2.79424545,2135.6,2135.2,5.18561164]
[1773421858108,3.96487886,2135.6,2135.3,1.618]
[1773421858320,2.79424545,2135.5,2135.3,1.618]
[1773421858608,2.79424545,2135.5,2135.4,1.618]
[1773421858779,2.79424545,2135.5,2134.8,1.17216174]
[1773421858981,2.79424545,2135.4,2134.8,1.17216632]
[1773421859208,2.79424545,2135.3,2134.8,0.0011]
[1773421859409,1.17090534,2135.1,2134.8,0.0011]
[1773421860109,1.17090534,2135.1,2134.9,1.618]
[1773421860292,1.17090534,2135.1,2134.8,0.0011]
[1773421860490,1.17090534,2135.1,2134.9,1.618]
[1773421860690,1.17090534,2135.1,2134.8,0.0011]
[1773421860909,2.79772387,2135.0,2134.5,0.0011]
[1773421861211,2.79772387,2134.9,2134.5,1.17232487]
[1773421861378,3.96882161,2134.8,2134.5,0.0011]
[1773421861583,1.17109774,2134.8,2134.5,0.0011]
[1773421862001,2.79808884,2134.7,2134.2,0.0011]
[1773421862316,2.79808884,2134.6,2134.2,0.0011]
[1773421862496,2.79808884,2134.5,2134.2,0.0011]
[1773421862693,2.79808884,2134.4,2134.0,0.0011]
[1773421862894,2.79808884,2134.3,2134.0,1.6041]
[1773421863098,2.79763301,2134.2,2134.0,1.6041]
[1773421863292,4.98355215,2134.7,2134.0,1.6041]
[1773421863500,1.17123448,2134.5,2134.0,1.6041]
[1773421863702,2.79512336,2134.4,2134.0,1.6041]
[1773421865008,2.79512336,2134.4,2134.0,2.77560299]
[1773421865411,2.79512336,2134.4,2134.0,1.6041]
[1773421865800,3.39647346,2134.9,2134.1,4.06167044]
[1773421865998,2.79130223,2134.8,2134.1,4.06167044]
[1773421866220,2.79130223,2134.8,2134.1,6.78585392]
[1773421866393,1.17098565,2135.0,2134.2,4.01481228]
[1773421866598,1.1708505,2135.2,2134.4,4.01481228]
[1773421866817,2.79032354,2135.1,2134.4,4.06166385]
[1773421867303,3.9219743,2135.3,2134.5,1.609]
[1773421867616,2.79027917,2135.2,2134.5,1.609]
[1773421867816,1.17090534,2135.1,2134.5,6.79504096]
[1773421868313,1.17090534,2135.1,2134.6,4.01481228]
[1773421868717,1.17089508,2135.2,2134.6,4.01481228]
[1773421868920,6.90818663,2135.5,2134.6,4.01481228]
[1773421868921,1.17072828,2135.5,2134.6,4.01481228]
[1773421869089,2.78968114,2135.4,2134.6,4.06165946]
[1773421869308,1.17152242,2135.8,2134.6,4.01481228]
[1773421869510,0.001,2135.8,2134.6,4.01481228]
[1773421869706,0.001,2135.8,2135.0,4.01481228]
[1773421870016,0.001,2135.8,2134.9,1.17101503]
[1773421870017,2.23032673,2137.1,2135.9,4.01481228]
[1773421870216,3.95776485,2137.0,2136.1,4.01481228]
[1773421870548,3.95652662,2136.9,2136.1,4.01481228]
[1773421870837,1.17093245,2136.9,2136.1,5.62581228]
[1773421871019,1.17093245,2136.9,2136.1,1.611]
[1773421871020,2.78578971,2136.8,2136.1,1.611]
[1773421871621,2.78578971,2136.8,2136.0,1.612]
[1773421871622,17.961378,2136.7,2136.0,1.612]
[1773421871818,3.95587301,2136.6,2136.0,1.612]
[1773421872137,1.1700833,2136.6,2136.0,1.612]
[1773421872726,1.1700833,2136.6,2136.0,2.78240807]
[1773421872927,1.1700833,2136.6,2136.0,5.62681228]
[1773421873838,4.68033323,2136.7,2135.5,4.01481228]
[1773421874044,2.78327395,2136.6,2135.6,1.613]
[1773421874742,2.78327395,2136.6,2135.7,4.01481228]
[1773421875522,1.17093294,2136.9,2135.7,4.01481228]
[1773421875926,0.001,2136.9,2135.9,4.01481228]
[1773421876614,0.001,2136.9,2136.2,4.01481228]
[1773421876828,0.001,2136.9,2136.4,4.01481228]
[1773421877469,0.001,2136.9,2136.6,4.01481228]
[1773421878136,0.001,2136.9,2136.7,1.613]
[1773421878632,2.46292,2136.3,2134.9,4.01481228]
[1773421878938,2.46292,2136.3,2134.8,1.17106988]
[1773421878939,10.910295,2136.3,2135.3,4.14760232]
[1773421879565,2.73205891,2136.4,2135.3,4.14760232]
[1773421879734,11.64838,2136.3,2135.3,4.14760232]
[1773421879935,1.1703024,2136.2,2135.3,5.31836116]
[1773421880858,1.1703024,2136.2,2135.3,5.18557112]
[1773421881259,1.1703024,2136.2,2135.3,4.01481228]
[1773421881459,1.1703024,2136.2,2135.1,5.055305]
[1773421881959,4.68120962,2136.3,2135.3,1.17079567]
[1773421882160,4.68120962,2136.3,2135.2,5.05526188]
[1773421883168,7.40337477,2136.3,2135.2,3.88443908]
[1773421883467,7.40337477,2136.3,2135.2,5.05528866]
[1773421883658,7.63594773,2136.3,2135.2,5.05528866]
[1773421883837,4.91378258,2136.3,2135.3,3.88443908]
[1773421884042,1.40282058,2136.3,2135.5,3.88443908]
[1773421884974,1.40282058,2136.3,2135.4,1.17074084]
[1773421885175,1.40282058,2136.3,2135.3,3.88443908]
[1773421885376,1.8013253,2136.2,2135.3,3.88443908]
[1773421886268,1.17035719,2136.1,2135.3,3.88443908]
[1773421886466,1.17035719,2136.1,2135.2,1.618]
[1773421886784,1.17035719,2136.1,2135.3,3.88443908]
[1773421888181,1.17035719,2136.1,2135.7,0.0011]
[1773421888388,4.68142877,2136.2,2135.7,0.0011]
[1773421893783,1.4028357,2136.3,2135.7,3.88553908]
[1773421893979,1.40283643,2136.3,2135.7,3.88553908]
[1773421894486,1.17011333,2136.6,2135.7,3.88553908]
[1773421894794,1.17103254,2136.7,2135.7,3.88553908]
[1773421895166,0.001,2136.7,2135.9,3.88443908]
[1773421895489,0.001,2136.7,2136.0,1.62]
[1773421895874,2.6846889,2136.0,2135.2,0.0011]
[1773421896064,5.6655185,2135.9,2135.2,0.0011]
[1773421896263,5.6655185,2135.9,2135.0,0.12799035]
[1773421896264,5.07433018,2135.9,2135.0,1e-08]
[1773421896590,5.07433018,2135.9,2135.0,3.88443909]
[1773421896893,2.78658129,2135.8,2135.0,3.88443909]
[1773421897092,2.9719565,2135.6,2135.0,1e-08]
[1773421897392,2.9719565,2135.6,2134.4,0.0011]
[1773421897393,2.78658129,2135.5,2134.5,5.50443908]
[1773421897597,2.78658129,2135.5,2134.6,3.88443908]
[1773421898201,2.78658129,2135.5,2134.4,0.0011]
[1773421898377,1.8013253,2134.3,2134.1,0.0011]
[1773421898705,2.67984229,2134.8,2134.1,0.0011]
[1773421898706,4.90205518,2134.8,2134.1,0.0011]
[1773421898867,2.79104499,2134.7,2134.1,0.0011]
[1773421899189,1.17117961,2134.6,2134.1,0.0011]
[1773421900772,1.17117961,2134.6,2134.3,0.0011]
[1773421901609,1.17106988,2134.8,2134.3,0.0011]
[1773421903583,4.68427955,2134.9,2134.1,0.0011]
[1773421903799,1.8013253,2134.8,2134.1,0.0011]
[1773421905497,1.8013253,2134.8,2134.0,3.88553908]
[1773421905804,1.17112474,2134.7,2134.0,3.88553908]
[1773421908902,1.8013253,2134.4,2133.7,0.0011]
[1773421909100,1.16346127,2134.3,2133.7,3.92862314]
[1773421909784,1.17139911,2134.2,2133.7,3.92862314]
[1773421910115,1.12061173,2134.1,2133.7,3.92862314]
[1773421911183,2.29201084,2134.2,2133.7,3.92862314]
[1773421911384,2.29201084,2134.2,2133.7,5.10028786]
[1773421911688,1.12061173,2134.2,2133.8,3.7390811]
[1773421911882,2.29203123,2134.2,2133.8,3.7390811]
[1773421912614,2.29203123,2134.2,2133.9,0.0011]
[1773421913721,1.12061173,2134.2,2133.9,0.0011]
[1773421916032,2.29204902,2134.2,2133.9,0.0011]
[1773421916221,0.001,2134.5,2134.0,3.7390811]
[1773421916222,1.17225907,2134.5,2134.0,3.7390811]
[1773421916829,1.17225907,2134.5,2133.9,0.0011]
[1773421917531,2.97358437,2134.5,2133.9,0.0011]
[1773421917726,5.63820553,2134.5,2133.9,0.0011]
[1773421917918,1.8013253,2134.2,2133.7,0.0011]
[1773421918501,4.46292277,2134.2,2133.7,0.0011]
[1773421918714,10.80023411,2134.5,2133.7,0.0011]
[1773421918913,2.7811344,2134.4,2133.7,0.0011]
[1773421919834,2.7811344,2134.4,2133.7,3.7401811]
[1773421920002,1.17134423,2134.3,2133.7,3.7401811]
[1773421920943,4.45669304,2134.2,2133.6,0.0011]
[1773421921236,4.45669304,2134.2,2133.4,0.0011]
[1773421921237,5.43783278,2134.1,2133.4,0.0011]
[1773421921445,1.8013253,2134.2,2133.4,3.7401811]
[1773421921737,2.7836415,2134.1,2133.4,3.7401811]
[1773421921963,1.1715089,2134.0,2133.4,0.0011]
[1773421922321,1.1715089,2134.0,2133.4,3.7401811]
[1773421922619,0.23223799,2134.2,2133.6,3.7390811]
[1773421922822,1.17138765,2134.3,2133.6,3.7390811]
[1773421923749,0.62474451,2134.5,2133.6,3.7390811]
[1773421923949,0.62474451,2134.5,2133.8,3.7390811]
[1773421924123,1.17118563,2134.6,2133.8,3.7390811]
[1773421924318,1.17118563,2134.6,2133.9,5.3480811]
[1773421924545,1.17118563,2134.6,2133.9,3.7390811]
[1773421924747,1.17118563,2134.6,2134.0,1.609]
[1773421925047,1.17118563,2134.6,2133.9,3.7390811]
[1773421925464,1.17118563,2134.6,2133.6,3.7401811]
[1773421925465,2.79545365,2134.5,2133.6,3.7401811]
[1773421925624,2.79645365,2134.5,2133.6,3.7401811]
[1773421925824,6.08045218,2134.5,2133.6,3.7401811]
[1773421926024,1.17134423,2134.3,2133.6,3.7401811]
[1773421926263,1.17134423,2134.3,2133.5,1.609]
[1773421926264,2.79545365,2134.2,2133.5,1.609]
[1773421926560,2.79545365,2134.2,2133.4,0.0011]
[1773421927058,2.79545365,2134.2,2133.4,3.7401811]
[1773421927255,2.79545365,2134.1,2133.4,4.91201717]
[1773421927556,2.79545365,2134.0,2133.4,3.7401811]
[1773421927746,2.79545365,2133.9,2133.4,3.7401811]
[1773421927936,8.47836157,2134.3,2133.4,3.7401811]
[1773421928139,1.171454,2134.1,2133.4,3.7401811]
[1773421928345,2.79986387,2134.0,2133.4,3.7401811]
[1773421928552,2.79986387,2133.9,2133.4,3.7401811]
[1773421928725,2.79986387,2133.8,2133.4,3.7401811]
[1773421929057,1.171454,2134.1,2133.4,3.7401811]
[1773421929265,2.80206176,2134.0,2133.4,3.7401811]
[1773421929462,2.80206176,2133.9,2133.4,3.7401811]
[1773421929651,2.80206176,2133.8,2133.4,3.7401811]
[1773421929850,2.80206176,2133.7,2133.4,3.7401811]
[1773421930051,3.39789137,2134.1,2133.4,3.7401811]
[1773421930249,2.80185218,2134.0,2133.4,3.7401811]
[1773421930443,2.80185218,2133.9,2133.4,3.7401811]
[1773421930763,2.80185218,2133.8,2133.4,3.7401811]
[1773421930949,3.39789137,2134.1,2133.4,3.7401811]
[1773421931267,2.8015346,2134.0,2133.4,3.7401811]
[1773421931469,2.8015346,2133.9,2133.4,3.7401811]
[1773421931636,2.8015346,2133.8,2133.4,3.7401811]
[1773421931832,3.39789137,2134.1,2133.4,3.7401811]
[1773421932032,2.8014266,2134.0,2133.4,3.7401811]
[1773421932365,2.8014266,2133.9,2133.4,3.7401811]
[1773421932592,3.97307906,2133.8,2133.4,3.7401811]
[1773421932741,1.17165246,2133.8,2133.4,3.7401811]
[1773421933272,1.17148225,2134.1,2133.6,3.7390811]
[1773421933474,2.80200158,2134.0,2133.6,3.7390811]
[1773421933768,2.80200158,2133.9,2133.6,3.7390811]
[1773421933973,1.17148225,2134.1,2133.6,3.7390811]
[1773421934132,2.80190968,2134.0,2133.6,3.7390811]
[1773421934333,2.80190968,2133.9,2133.6,3.7390811]
[1773421934667,1.17143701,2134.2,2133.7,4.91075471]
[1773421935335,1.17131362,2134.4,2133.8,3.7390811]
[1773421935640,1.17223734,2134.5,2134.0,3.7390811]
[1773421936535,0.001,2134.5,2134.1,4.9105351]
[1773421936731,1.80190258,2134.4,2133.8,3.7390811]
[1773421936928,0.001,2134.5,2133.8,3.7390811]
[1773421937747,0.001,2134.3,2133.8,3.7390811]
[1773421938654,0.001,2134.3,2134.0,3.7390811]
[1773421939363,2.22643737,2135.2,2134.2,3.7390811]
[1773421939651,1.17081688,2135.3,2134.4,3.7390811]
[1773421939857,0.002,2135.2,2134.4,3.7390811]
[1773421940835,0.002,2135.2,2134.5,1.17123448]
[1773421941033,0.002,2135.2,2134.6,3.97727002]
[1773421941872,0.31233051,2135.4,2134.5,1.17123448]
[1773421942037,1.48307199,2135.4,2134.6,3.97727002]
[1773421942430,5.62117762,2135.4,2134.7,1.609]